[Event "Elite Hotels Open 2024"]
[Site "Elite Stadshotellet, Kungsgatan 6, Vaxjo, Sweden"]
[Date "2024.02.09"]
[Round "1.7"]
[White "Nyberg, Peter"]
[Black "Jepson, Christian"]
[Result "0-1"]
[TimeControl "15 minutes + 5 seconds per move from move one (Round 1 - 4) / 90 minutes + 30 seconds per move from move one (Round 5 - 8)"]
[BlackTitle "IM"]
[WhiteFideId "1771779"]
[BlackFideId "1701185"]
[WhiteElo "1848"]
[BlackElo "2386"]

1. d4 {[%clk 00:15:07]} {[%emt 00:00:02]} Nf6 {[%clk 00:15:07]} {[%emt
00:00:03]} 2. c4 {[%clk 00:15:11]} {[%emt 00:00:01]} e6 {[%clk 00:15:11]}
{[%emt 00:00:02]} 3. g3 {[%clk 00:15:04]} {[%emt 00:00:12]} c5 {[%clk
00:15:13]} {[%emt 00:00:02]} 4. d5 {[%clk 00:15:04]} {[%emt 00:00:05]} exd5
{[%clk 00:15:16]} {[%emt 00:00:02]} 5. cxd5 {[%clk 00:15:08]} {[%emt 00:00:01]}
d6 {[%clk 00:15:20]} {[%emt 00:00:02]} 6. Bg2 {[%clk 00:15:03]} {[%emt
00:00:10]} g6 {[%clk 00:15:21]} {[%emt 00:00:04]} 7. Nf3 {[%clk 00:14:59]}
{[%emt 00:00:09]} b5 {[%clk 00:15:17]} {[%emt 00:00:09]} 8. O-O {[%clk
00:14:26]} {[%emt 00:00:36]} Bg7 {[%clk 00:15:20]} {[%emt 00:00:03]} 9. Nbd2
{[%clk 00:13:34]} {[%emt 00:00:57]} Nbd7 {[%clk 00:15:09]} {[%emt 00:00:15]} 10.
a4 {[%clk 00:13:28]} {[%emt 00:00:12]} b4 {[%clk 00:14:52]} {[%emt 00:00:22]}
11. Nc4 {[%clk 00:13:21]} {[%emt 00:00:11]} Nb6 {[%clk 00:14:53]} {[%emt
00:00:03]} 12. Nfd2 {[%clk 00:11:55]} {[%emt 00:01:31]} Ba6 {[%clk 00:14:51]}
{[%emt 00:00:08]} 13. Qc2 {[%clk 00:11:38]} {[%emt 00:00:21]} O-O {[%clk
00:13:57]} {[%emt 00:00:59]} 14. Nxb6 {[%clk 00:11:21]} {[%emt 00:00:22]} axb6
{[%clk 00:13:51]} {[%emt 00:00:11]} 15. Re1 {[%clk 00:11:03]} {[%emt 00:00:23]}
Ng4 {[%clk 00:13:12]} {[%emt 00:00:44]} 16. Nc4 {[%clk 00:10:12]} {[%emt
00:00:57]} Qf6 {[%clk 00:11:17]} {[%emt 00:02:00]} 17. Bf3 {[%clk 00:09:11]}
{[%emt 00:01:05]} Qd4 {[%clk 00:10:36]} {[%emt 00:00:46]} 18. Ne3 {[%clk
00:08:44]} {[%emt 00:00:33]} Nxe3 {[%clk 00:10:18]} {[%emt 00:00:23]} 19. fxe3
{[%clk 00:08:29]} {[%emt 00:00:20]} Qc4 {[%clk 00:10:14]} {[%emt 00:00:09]} 20.
Qd1 {[%clk 00:07:37]} {[%emt 00:00:57]} Bc8 {[%clk 00:08:34]} {[%emt 00:01:45]}
21. b3 {[%clk 00:07:26]} {[%emt 00:00:16]} Qa6 {[%clk 00:08:33]} {[%emt
00:00:06]} 22. Rb1 {[%clk 00:07:12]} {[%emt 00:00:18]} b5 {[%clk 00:08:36]}
{[%emt 00:00:03]} 23. axb5 {[%clk 00:07:03]} {[%emt 00:00:14]} Qa2 {[%clk
00:08:23]} {[%emt 00:00:17]} 24. Bd2 {[%clk 00:06:43]} {[%emt 00:00:26]} Bd7
{[%clk 00:08:20]} {[%emt 00:00:09]} 25. e4 {[%clk 00:06:25]} {[%emt 00:00:22]}
Bxb5 {[%clk 00:08:08]} {[%emt 00:00:17]} 26. Bf4 {[%clk 00:06:20]} {[%emt
00:00:09]} Ra6 {[%clk 00:07:47]} {[%emt 00:00:27]} 27. Qd2 {[%clk 00:06:02]}
{[%emt 00:00:23]} Qxd2 {[%clk 00:07:27]} {[%emt 00:00:24]} 28. Bxd2 {[%clk
00:06:06]} Bd4+ {[%clk 00:06:44]} {[%emt 00:00:48]} 29. Kg2 {[%clk 00:05:39]}
{[%emt 00:00:32]} Kg7 {[%clk 00:06:33]} {[%emt 00:00:16]} 30. Bc1 {[%clk
00:04:59]} {[%emt 00:00:45]} Ra2 {[%clk 00:06:29]} {[%emt 00:00:09]} 31. Bf4
{[%clk 00:04:24]} {[%emt 00:00:41]} Rd8 {[%clk 00:06:32]} {[%emt 00:00:01]} 32.
Kf1 {[%clk 00:04:14]} {[%emt 00:00:15]} h6 {[%clk 00:06:35]} {[%emt 00:00:03]}
33. h4 {[%clk 00:04:08]} {[%emt 00:00:11]} f6 {[%clk 00:06:32]} {[%emt
00:00:08]} 34. Red1 {[%clk 00:03:45]} {[%emt 00:00:28]} g5 {[%clk 00:06:15]}
{[%emt 00:00:22]} 35. hxg5 {[%clk 00:03:24]} {[%emt 00:00:27]} hxg5 {[%clk
00:06:05]} {[%emt 00:00:14]} 36. Bd2 {[%clk 00:03:23]} {[%emt 00:00:06]} Be5
{[%clk 00:04:41]} {[%emt 00:01:29]} 37. Kf2 {[%clk 00:03:14]} {[%emt 00:00:15]}
Rh8 {[%clk 00:04:41]} {[%emt 00:00:04]} 38. Kg2 {[%clk 00:03:05]} {[%emt
00:00:14]} Bd7 {[%clk 00:04:34]} {[%emt 00:00:13]} 39. Be3 {[%clk 00:02:59]}
{[%emt 00:00:11]} g4 {[%clk 00:04:27]} {[%emt 00:00:12]} 0-1

[Event "Elite Hotels Open 2024"]
[Site "Elite Stadshotellet, Kungsgatan 6, Vaxjo, Sweden"]
[Date "2024.02.09"]
[Round "1.8"]
[White "Akesson, Ralf"]
[Black "Schriever-Abeln, Marius"]
[Result "1-0"]
[TimeControl "15 minutes + 5 seconds per move from move one (Round 1 - 4) / 90 minutes + 30 seconds per move from move one (Round 5 - 8)"]
[WhiteTitle "GM"]
[WhiteFideId "1700120"]
[BlackFideId "1752650"]
[WhiteElo "2378"]
[BlackElo "1848"]

1. Nf3 {[%clk 00:15:04]} {[%emt 00:00:05]} d5 {[%clk 00:15:09]} {[%emt
00:00:02]} 2. d4 {[%clk 00:15:06]} {[%emt 00:00:03]} Nf6 {[%clk 00:15:09]}
{[%emt 00:00:05]} 3. c4 {[%clk 00:15:09]} {[%emt 00:00:02]} e6 {[%clk
00:15:12]} {[%emt 00:00:01]} 4. Nc3 {[%clk 00:15:08]} {[%emt 00:00:06]} a6
{[%clk 00:15:17]} {[%emt 00:00:01]} 5. cxd5 {[%clk 00:15:01]} {[%emt 00:00:12]}
exd5 {[%clk 00:15:20]} {[%emt 00:00:02]} 6. Bg5 {[%clk 00:14:53]} {[%emt
00:00:12]} Be6 {[%clk 00:15:24]} {[%emt 00:00:01]} 7. e3 {[%clk 00:14:39]}
{[%emt 00:00:19]} Nbd7 {[%clk 00:15:28]} {[%emt 00:00:02]} 8. Bd3 {[%clk
00:13:11]} {[%emt 00:01:32]} Bd6 {[%clk 00:15:31]} {[%emt 00:00:03]} 9. Qc2
{[%clk 00:13:03]} {[%emt 00:00:13]} c6 {[%clk 00:15:25]} {[%emt 00:00:11]} 10.
Bh4 {[%clk 00:12:31]} {[%emt 00:00:37]} Qc7 {[%clk 00:15:16]} {[%emt 00:00:14]}
11. Ng5 {[%clk 00:11:54]} {[%emt 00:00:42]} Bg4 {[%clk 00:13:06]} {[%emt
00:02:15]} 12. h3 {[%clk 00:09:15]} {[%emt 00:02:43]} Bh5 {[%clk 00:12:51]}
{[%emt 00:00:20]} 13. f4 {[%clk 00:09:08]} {[%emt 00:00:12]} Bg6 {[%clk
00:09:36]} {[%emt 00:03:21]} 14. O-O {[%clk 00:09:00]} {[%emt 00:00:13]} Bxd3
{[%clk 00:09:11]} {[%emt 00:00:30]} 15. Qxd3 {[%clk 00:09:03]} {[%emt
00:00:02]} O-O {[%clk 00:08:56]} {[%emt 00:00:20]} 16. Rac1 {[%clk 00:08:46]}
{[%emt 00:00:21]} Rfe8 {[%clk 00:08:33]} {[%emt 00:00:29]} 17. Nxd5 {[%clk
00:08:14]} {[%emt 00:00:37]} Qa5 {[%clk 00:07:30]} {[%emt 00:01:08]} 18. Nc3
{[%clk 00:07:41]} {[%emt 00:00:38]} h6 {[%clk 00:06:42]} {[%emt 00:00:54]} 19.
Nf3 {[%clk 00:07:43]} {[%emt 00:00:01]} Nd5 {[%clk 00:06:32]} {[%emt 00:00:15]}
20. Ne5 {[%clk 00:07:20]} {[%emt 00:00:28]} Bxe5 {[%clk 00:05:32]} {[%emt
00:01:05]} 21. fxe5 {[%clk 00:07:16]} {[%emt 00:00:08]} Nxc3 {[%clk 00:05:25]}
{[%emt 00:00:14]} 22. bxc3 {[%clk 00:07:07]} {[%emt 00:00:14]} Qd5 {[%clk
00:04:01]} {[%emt 00:01:29]} 23. c4 {[%clk 00:05:44]} {[%emt 00:01:27]} Qe6
{[%clk 00:03:32]} {[%emt 00:00:35]} 24. a4 {[%clk 00:05:38]} {[%emt 00:00:11]}
g5 {[%clk 00:03:08]} {[%emt 00:00:29]} 25. Bg3 {[%clk 00:05:34]} {[%emt
00:00:08]} Rad8 {[%clk 00:02:34]} {[%emt 00:00:40]} 26. Rf5 {[%clk 00:05:18]}
{[%emt 00:00:20]} Qg6 {[%clk 00:02:14]} {[%emt 00:00:26]} 27. Qc2 {[%clk
00:04:48]} {[%emt 00:00:34]} c5 {[%clk 00:01:44]} {[%emt 00:00:37]} 28. Qf2
{[%clk 00:04:28]} {[%emt 00:00:24]} Re7 {[%clk 00:01:23]} {[%emt 00:00:26]} 29.
Rf1 {[%clk 00:04:20]} {[%emt 00:00:12]} Nb6 {[%emt 00:00:30]} 30. Rf6 {[%clk
00:04:15]} {[%emt 00:00:10]} 1-0

[Event "Elite Hotels Open 2024"]
[Site "Elite Stadshotellet, Kungsgatan 6, Vaxjo, Sweden"]
[Date "2024.02.09"]
[Round "1.9"]
[White "Olsson, Thomas"]
[Black "Jacobsen, Mikkel Manosri"]
[Result "1-0"]
[TimeControl "15 minutes + 5 seconds per move from move one (Round 1 - 4) / 90 minutes + 30 seconds per move from move one (Round 5 - 8)"]
[BlackTitle "FM"]
[WhiteFideId "1702696"]
[BlackFideId "1444514"]
[WhiteElo "1838"]
[BlackElo "2374"]

1. e4 {[%clk 00:15:07]} {[%emt 00:00:03]} c6 {[%clk 00:15:09]} {[%emt
00:00:02]} 2. d4 {[%clk 00:15:06]} {[%emt 00:00:06]} d5 {[%clk 00:15:12]}
{[%emt 00:00:01]} 3. Nc3 {[%clk 00:15:08]} {[%emt 00:00:03]} dxe4 {[%clk
00:15:14]} {[%emt 00:00:04]} 4. Nxe4 {[%clk 00:15:11]} {[%emt 00:00:01]} Bf5
{[%clk 00:15:17]} {[%emt 00:00:02]} 5. Ng3 {[%clk 00:15:12]} {[%emt 00:00:04]}
Bg6 {[%clk 00:15:21]} {[%emt 00:00:02]} 6. Nf3 {[%clk 00:15:13]} {[%emt
00:00:05]} Nd7 {[%clk 00:15:24]} {[%emt 00:00:01]} 7. h4 {[%clk 00:15:13]}
{[%emt 00:00:05]} h6 {[%clk 00:15:27]} {[%emt 00:00:02]} 8. Bd3 {[%clk
00:15:15]} {[%emt 00:00:02]} Bxd3 {[%clk 00:15:29]} {[%emt 00:00:04]} 9. Qxd3
{[%clk 00:15:18]} {[%emt 00:00:02]} e6 {[%clk 00:15:32]} {[%emt 00:00:02]} 10.
Bd2 {[%clk 00:15:18]} {[%emt 00:00:05]} Ngf6 {[%clk 00:15:29]} {[%emt
00:00:07]} 11. Qe2 {[%clk 00:15:15]} {[%emt 00:00:08]} Be7 {[%clk 00:15:08]}
{[%emt 00:00:26]} 12. O-O-O {[%clk 00:14:44]} {[%emt 00:00:36]} O-O {[%clk
00:14:45]} {[%emt 00:00:28]} 13. Kb1 {[%clk 00:14:40]} {[%emt 00:00:09]} a5
{[%clk 00:14:40]} {[%emt 00:00:10]} 14. Nf1 {[%clk 00:13:36]} {[%emt 00:01:09]}
a4 {[%clk 00:13:27]} {[%emt 00:01:18]} 15. Rg1 {[%clk 00:13:20]} {[%emt
00:00:21]} Qb6 {[%clk 00:13:17]} {[%emt 00:00:15]} 16. Ka1 {[%clk 00:12:15]}
{[%emt 00:01:10]} Nd5 {[%clk 00:11:42]} {[%emt 00:01:40]} 17. g4 {[%clk
00:11:18]} {[%emt 00:01:01]} Bb4 {[%clk 00:07:22]} {[%emt 00:04:26]} 18. a3
{[%clk 00:07:36]} {[%emt 00:03:48]} Bxd2 {[%clk 00:06:16]} {[%emt 00:01:10]} 19.
Qxd2 {[%clk 00:07:36]} {[%emt 00:00:05]} Qb5 {[%clk 00:04:44]} {[%emt
00:01:37]} 20. g5 {[%clk 00:07:23]} {[%emt 00:00:18]} h5 {[%clk 00:04:40]}
{[%emt 00:00:08]} 21. Ng3 {[%clk 00:07:18]} {[%emt 00:00:10]} N7b6 {[%clk
00:04:15]} {[%emt 00:00:30]} 22. Ne5 {[%clk 00:05:41]} {[%emt 00:01:42]} c5
{[%clk 00:02:33]} {[%emt 00:01:47]} 23. Nxh5 {[%clk 00:04:56]} {[%emt
00:00:50]} cxd4 {[%clk 00:02:27]} {[%emt 00:00:12]} 24. Nf6+ {[%clk 00:02:27]}
{[%emt 00:02:34]} Kh8 {[%clk 00:02:05]} {[%emt 00:00:27]} 25. Rde1 {[%clk
00:01:52]} {[%emt 00:00:39]} Nc4 {[%clk 00:01:33]} {[%emt 00:00:37]} 26. Nxc4
{[%clk 00:01:51]} {[%emt 00:00:07]} Qxc4 {[%clk 00:01:37]} {[%emt 00:00:02]} 27.
Qd1 {[%clk 00:01:01]} {[%emt 00:00:54]} g6 {[%clk 00:00:36]} {[%emt 00:01:06]}
28. Nxd5 {[%clk 00:00:53]} {[%emt 00:00:13]} Qxd5 {[%clk 00:00:39]} {[%emt
00:00:02]} 29. h5 {[%clk 00:00:49]} {[%emt 00:00:08]} Kg7 {[%clk 00:00:34]}
{[%emt 00:00:10]} 30. Rg4 {[%clk 00:00:24]} {[%emt 00:00:30]} Rfd8 {[%clk
00:00:24]} {[%emt 00:00:15]} 31. hxg6 {[%clk 00:00:12]} {[%emt 00:00:16]} fxg6
{[%clk 00:00:27]} {[%emt 00:00:03]} 32. Rge4 {[%clk 00:00:09]} {[%emt
00:00:08]} Ra6 {[%clk 00:00:27]} {[%emt 00:00:05]} 33. Qf3 {[%clk 00:00:10]}
{[%emt 00:00:04]} Rf8 {[%clk 00:00:13]} {[%emt 00:00:19]} 34. Qg4 {[%clk
00:00:06]} {[%emt 00:00:09]} Rxf2 {[%clk 00:00:13]} {[%emt 00:00:05]} 35. Qh4
{[%clk 00:00:08]} {[%emt 00:00:03]} Rf7 {[%clk 00:00:11]} {[%emt 00:00:06]} 36.
Qh6+ {[%clk 00:00:11]} {[%emt 00:00:02]} Kg8 {[%clk 00:00:15]} {[%emt
00:00:01]} 37. Rh4 {[%clk 00:00:15]} {[%emt 00:00:02]} Rg7 {[%clk 00:00:08]}
{[%emt 00:00:13]} 38. Qh8+ {[%clk 00:00:17]} {[%emt 00:00:02]} Kf7 {[%clk
00:00:12]} {[%emt 00:00:01]} 39. Rf1+ {[%clk 00:00:20]} {[%emt 00:00:02]} Qf5
{[%clk 00:00:16]} {[%emt 00:00:01]} 40. Rxf5+ {[%clk 00:00:20]} {[%emt
00:00:04]} gxf5 {[%clk 00:00:18]} {[%emt 00:00:03]} 41. Rh7 {[%clk 00:00:19]}
{[%emt 00:00:06]} Rxh7 {[%clk 00:00:22]} {[%emt 00:00:02]} 42. Qxh7+ {[%clk
00:00:22]} {[%emt 00:00:01]} Ke8 {[%clk 00:00:26]} 43. g6 {[%clk 00:00:26]}
{[%emt 00:00:01]} 1-0

[Event "Elite Hotels Open 2024"]
[Site "Elite Stadshotellet, Kungsgatan 6, Vaxjo, Sweden"]
[Date "2024.02.09"]
[Round "1.10"]
[White "Olsson, William"]
[Black "Wang, Dawen"]
[Result "1-0"]
[TimeControl "15 minutes + 5 seconds per move from move one (Round 1 - 4) / 90 minutes + 30 seconds per move from move one (Round 5 - 8)"]
[WhiteTitle "FM"]
[WhiteFideId "1741721"]
[BlackFideId "1756320"]
[WhiteElo "2373"]
[BlackElo "1834"]

1. c4 {[%clk 00:15:08]} {[%emt 00:00:02]} Nf6 {[%clk 00:15:06]} {[%emt
00:00:05]} 2. g3 {[%clk 00:15:12]} {[%emt 00:00:02]} g6 {[%clk 00:15:08]}
{[%emt 00:00:02]} 3. Bg2 {[%clk 00:15:16]} {[%emt 00:00:01]} Bg7 {[%clk
00:15:12]} 4. Nc3 {[%clk 00:15:20]} {[%emt 00:00:01]} O-O {[%clk 00:15:12]}
{[%emt 00:00:05]} 5. Nf3 {[%clk 00:15:24]} {[%emt 00:00:02]} c6 {[%clk
00:15:15]} {[%emt 00:00:01]} 6. O-O {[%clk 00:14:40]} {[%emt 00:00:49]} d6
{[%clk 00:15:07]} {[%emt 00:00:13]} 7. d4 {[%clk 00:14:43]} {[%emt 00:00:02]}
a5 {[%clk 00:14:56]} {[%emt 00:00:15]} 8. e4 {[%clk 00:14:27]} {[%emt
00:00:21]} e5 {[%clk 00:14:06]} {[%emt 00:00:55]} 9. h3 {[%clk 00:14:12]}
{[%emt 00:00:20]} Nbd7 {[%clk 00:13:39]} {[%emt 00:00:32]} 10. Be3 {[%clk
00:14:16]} {[%emt 00:00:02]} Ne8 {[%clk 00:13:29]} {[%emt 00:00:15]} 11. Qd2
{[%clk 00:13:29]} {[%emt 00:00:52]} f5 {[%clk 00:13:05]} {[%emt 00:00:29]} 12.
Rad1 {[%clk 00:12:33]} {[%emt 00:01:01]} Qe7 {[%clk 00:11:39]} {[%emt
00:01:31]} 13. Rfe1 {[%clk 00:11:32]} {[%emt 00:01:06]} Nef6 {[%clk 00:10:18]}
{[%emt 00:01:27]} 14. Bg5 {[%clk 00:11:22]} {[%emt 00:00:13]} Qf7 {[%clk
00:10:06]} {[%emt 00:00:19]} 15. exf5 {[%clk 00:11:18]} {[%emt 00:00:09]} gxf5
{[%clk 00:09:46]} {[%emt 00:00:24]} 16. dxe5 {[%clk 00:10:47]} {[%emt
00:00:36]} dxe5 {[%clk 00:09:26]} {[%emt 00:00:25]} 17. Nh4 {[%clk 00:09:10]}
{[%emt 00:01:42]} Nb6 {[%clk 00:08:15]} {[%emt 00:01:17]} 18. b3 {[%clk
00:08:11]} {[%emt 00:01:04]} e4 {[%clk 00:06:51]} {[%emt 00:01:28]} 19. Be3
{[%clk 00:07:59]} {[%emt 00:00:17]} Nfd7 {[%clk 00:06:28]} {[%emt 00:00:29]} 20.
Ne2 {[%clk 00:07:21]} {[%emt 00:00:42]} a4 {[%clk 00:06:07]} {[%emt 00:00:26]}
21. Qb4 {[%clk 00:05:15]} {[%emt 00:02:12]} Ra6 {[%clk 00:04:53]} {[%emt
00:01:19]} 22. Nf4 {[%clk 00:05:18]} {[%emt 00:00:02]} axb3 {[%clk 00:04:03]}
{[%emt 00:00:55]} 23. axb3 {[%clk 00:05:22]} {[%emt 00:00:01]} Re8 {[%clk
00:03:54]} {[%emt 00:00:14]} 24. Bf1 {[%clk 00:05:25]} {[%emt 00:00:02]} Qf8
{[%clk 00:02:51]} {[%emt 00:01:09]} 25. c5 {[%clk 00:04:55]} {[%emt 00:00:34]}
Ra2 {[%clk 00:02:42]} {[%emt 00:00:14]} 26. Nh5 {[%clk 00:04:37]} {[%emt
00:00:23]} Nd5 {[%clk 00:02:28]} {[%emt 00:00:19]} 27. Qc4 {[%clk 00:04:24]}
{[%emt 00:00:17]} Ne5 {[%clk 00:02:25]} {[%emt 00:00:08]} 28. Qc1 {[%clk
00:04:19]} {[%emt 00:00:10]} Nxe3 {[%clk 00:01:55]} {[%emt 00:00:35]} 29. Qxe3
{[%clk 00:04:09]} {[%emt 00:00:15]} Bh6 {[%clk 00:01:56]} {[%emt 00:00:05]} 30.
Nf4 {[%clk 00:03:40]} {[%emt 00:00:32]} Qf7 {[%clk 00:01:37]} {[%emt 00:00:25]}
31. Rd4 {[%clk 00:02:48]} {[%emt 00:00:58]} Ng6 {[%clk 00:01:30]} {[%emt
00:00:11]} 32. Nhxg6 {[%clk 00:02:46]} {[%emt 00:00:06]} hxg6 {[%clk 00:01:34]}
{[%emt 00:00:02]} 33. Bc4 {[%clk 00:02:49]} {[%emt 00:00:01]} Be6 {[%clk
00:01:37]} {[%emt 00:00:02]} 34. Bxe6 {[%clk 00:01:47]} {[%emt 00:01:07]} Rxe6
{[%clk 00:01:30]} {[%emt 00:00:11]} 35. Rd8+ {[%clk 00:01:49]} {[%emt
00:00:03]} Re8 {[%clk 00:01:32]} {[%emt 00:00:04]} 36. Rd6 {[%clk 00:01:43]}
{[%emt 00:00:12]} Rb2 {[%clk 00:00:56]} {[%emt 00:00:41]} 37. Qd4 {[%clk
00:01:15]} {[%emt 00:00:32]} Bxf4 {[%clk 00:00:54]} {[%emt 00:00:07]} 38. Qxb2
{[%clk 00:00:59]} {[%emt 00:00:22]} Bxd6 {[%clk 00:00:56]} {[%emt 00:00:03]} 39.
cxd6 {[%clk 00:01:03]} {[%emt 00:00:02]} Rd8 {[%clk 00:00:47]} {[%emt
00:00:14]} 40. Rd1 {[%clk 00:01:02]} {[%emt 00:00:04]} f4 {[%clk 00:00:43]}
{[%emt 00:00:09]} 41. Qe5 {[%clk 00:00:58]} {[%emt 00:00:10]} fxg3 {[%clk
00:00:23]} {[%emt 00:00:25]} 42. Qxg3 {[%clk 00:01:02]} {[%emt 00:00:01]} Kg7
{[%clk 00:00:19]} {[%emt 00:00:09]} 43. Rd4 {[%clk 00:01:00]} {[%emt 00:00:06]}
Qe6 {[%clk 00:00:20]} {[%emt 00:00:05]} 44. Rd1 {[%clk 00:00:43]} {[%emt
00:00:22]} Qf6 {[%clk 00:00:18]} {[%emt 00:00:07]} 45. d7 {[%clk 00:00:30]}
{[%emt 00:00:18]} Qe6 {[%clk 00:00:21]} {[%emt 00:00:03]} 46. Rd6 {[%clk
00:00:32]} {[%emt 00:00:03]} Qe7 {[%clk 00:00:17]} {[%emt 00:00:08]} 47. Qxg6+
{[%clk 00:00:33]} {[%emt 00:00:04]} Kh8 {[%clk 00:00:18]} {[%emt 00:00:04]} 48.
Qh5+ {[%clk 00:00:31]} {[%emt 00:00:07]} Kg8 {[%clk 00:00:17]} {[%emt
00:00:06]} 49. Rg6+ {[%clk 00:00:33]} {[%emt 00:00:03]} Kf8 {[%clk 00:00:20]}
{[%emt 00:00:02]} 50. Qh8+ {[%clk 00:00:37]} {[%emt 00:00:01]} Kf7 {[%clk
00:00:24]} {[%emt 00:00:02]} 51. Qh7+ {[%clk 00:00:40]} {[%emt 00:00:01]} Kf8
{[%clk 00:00:26]} {[%emt 00:00:02]} 52. Rg8# {[%clk 00:00:44]} {[%emt
00:00:02]} 1-0

[Event "Elite Hotels Open 2024"]
[Site "Elite Stadshotellet, Kungsgatan 6, Vaxjo, Sweden"]
[Date "2024.02.09"]
[Round "1.11"]
[White "Ostlund, Joar"]
[Black "Magnussen, Pal"]
[Result "1-0"]
[TimeControl "15 minutes + 5 seconds per move from move one (Round 1 - 4) / 90 minutes + 30 seconds per move from move one (Round 5 - 8)"]
[WhiteTitle "FM"]
[WhiteFideId "1735020"]
[BlackFideId "1711814"]
[WhiteElo "2327"]
[BlackElo "1812"]

1. d4 {[%clk 00:15:08]} {[%emt 00:00:02]} Nf6 {[%clk 00:15:07]} {[%emt
00:00:03]} 2. c4 {[%clk 00:15:11]} {[%emt 00:00:02]} c5 {[%clk 00:15:10]}
{[%emt 00:00:02]} 3. d5 {[%clk 00:15:14]} {[%emt 00:00:02]} b5 {[%clk
00:15:13]} {[%emt 00:00:02]} 4. cxb5 {[%clk 00:15:16]} {[%emt 00:00:03]} a6
{[%clk 00:15:17]} {[%emt 00:00:01]} 5. bxa6 {[%clk 00:15:16]} {[%emt 00:00:05]}
Bxa6 {[%clk 00:15:20]} {[%emt 00:00:01]} 6. Nc3 {[%clk 00:15:17]} {[%emt
00:00:04]} g6 {[%clk 00:15:22]} {[%emt 00:00:03]} 7. Nf3 {[%clk 00:15:18]}
{[%emt 00:00:04]} Bg7 {[%clk 00:15:21]} {[%emt 00:00:06]} 8. e4 {[%clk
00:15:20]} {[%emt 00:00:04]} Bxf1 {[%clk 00:15:23]} {[%emt 00:00:03]} 9. Kxf1
{[%clk 00:15:22]} {[%emt 00:00:03]} d6 {[%clk 00:15:26]} {[%emt 00:00:02]} 10.
g3 {[%clk 00:15:20]} {[%emt 00:00:07]} O-O {[%clk 00:15:27]} {[%emt 00:00:03]}
11. Kg2 {[%clk 00:15:21]} {[%emt 00:00:04]} Nbd7 {[%clk 00:15:29]} {[%emt
00:00:04]} 12. a4 {[%clk 00:15:07]} {[%emt 00:00:19]} Qa5 {[%clk 00:15:06]}
{[%emt 00:00:28]} 13. Qc2 {[%clk 00:13:19]} {[%emt 00:01:54]} Rfb8 {[%clk
00:14:48]} {[%emt 00:00:22]} 14. Ra3 {[%clk 00:11:08]} {[%emt 00:02:16]} Ng4
{[%clk 00:11:36]} {[%emt 00:03:16]} 15. h3 {[%clk 00:09:40]} {[%emt 00:01:33]}
Nge5 {[%clk 00:11:33]} {[%emt 00:00:08]} 16. Nxe5 {[%clk 00:09:37]} {[%emt
00:00:08]} Nxe5 {[%clk 00:11:36]} {[%emt 00:00:02]} 17. Nb5 {[%clk 00:08:06]}
{[%emt 00:01:36]} Qd8 {[%clk 00:09:50]} {[%emt 00:01:51]} 18. b3 {[%clk
00:07:25]} {[%emt 00:00:46]} Nd7 {[%clk 00:09:05]} {[%emt 00:00:49]} 19. Bb2
{[%clk 00:06:29]} {[%emt 00:01:02]} Bxb2 {[%clk 00:08:52]} {[%emt 00:00:18]} 20.
Qxb2 {[%clk 00:06:32]} {[%emt 00:00:01]} Qa5 {[%emt 00:01:46]} 21. Raa1 {[%clk
00:05:58]} {[%emt 00:00:37]} Qb4 {[%clk 00:06:43]} {[%emt 00:00:34]} 22. Qc2
{[%clk 00:05:05]} {[%emt 00:00:58]} Nf6 {[%clk 00:04:54]} {[%emt 00:01:54]} 23.
Rhe1 {[%clk 00:04:40]} {[%emt 00:00:30]} h5 {[%clk 00:03:22]} {[%emt 00:01:37]}
24. Rac1 {[%clk 00:02:28]} {[%emt 00:02:16]} Qa5 {[%clk 00:02:44]} {[%emt
00:00:44]} 25. Qc3 {[%clk 00:02:13]} {[%emt 00:00:20]} Qd8 {[%clk 00:02:32]}
{[%emt 00:00:17]} 26. Rcd1 {[%clk 00:02:01]} {[%emt 00:00:17]} Ne8 {[%clk
00:02:28]} {[%emt 00:00:08]} 27. e5 {[%clk 00:01:54]} {[%emt 00:00:12]} Nc7
{[%clk 00:02:31]} {[%emt 00:00:02]} 28. Na3 {[%clk 00:00:54]} {[%emt 00:01:06]}
Rb4 {[%clk 00:02:23]} {[%emt 00:00:13]} 29. Nc4 {[%clk 00:00:47]} {[%emt
00:00:12]} Rab8 {[%clk 00:02:17]} {[%emt 00:00:11]} 30. exd6 {[%clk 00:00:31]}
{[%emt 00:00:20]} exd6 {[%clk 00:02:17]} {[%emt 00:00:05]} 31. Na5 {[%clk
00:00:17]} {[%emt 00:00:19]} Qg5 {[%clk 00:01:56]} {[%emt 00:00:26]} 32. Qe3
{[%clk 00:00:11]} {[%emt 00:00:11]} Qxe3 {[%clk 00:01:31]} {[%emt 00:00:30]} 33.
Rxe3 {[%clk 00:00:15]} {[%emt 00:00:01]} Re8 {[%clk 00:01:31]} {[%emt
00:00:05]} 34. Rxe8+ {[%clk 00:00:13]} {[%emt 00:00:07]} Nxe8 {[%clk 00:01:35]}
35. Rc1 {[%clk 00:00:07]} {[%emt 00:00:11]} Rd4 {[%clk 00:01:35]} {[%emt
00:00:05]} 36. Nc6 {[%clk 00:00:07]} {[%emt 00:00:06]} Rd2 {[%clk 00:01:32]}
{[%emt 00:00:07]} 37. Ra1 {[%clk 00:00:08]} {[%emt 00:00:04]} Kg7 {[%clk
00:01:36]} {[%emt 00:00:02]} 38. a5 {[%clk 00:00:12]} {[%emt 00:00:02]} Rxd5
{[%clk 00:01:37]} {[%emt 00:00:03]} 39. a6 {[%clk 00:00:15]} {[%emt 00:00:02]}
Nc7 {[%clk 00:01:34]} {[%emt 00:00:08]} 40. a7 {[%clk 00:00:19]} {[%emt
00:00:02]} Na8 {[%clk 00:01:36]} {[%emt 00:00:02]} 41. Ra5 {[%clk 00:00:11]}
{[%emt 00:00:13]} Rd2 {[%clk 00:01:26]} {[%emt 00:00:15]} 42. Rb5 {[%clk
00:00:12]} {[%emt 00:00:03]} d5 {[%clk 00:01:16]} {[%emt 00:00:16]} 43. Rb8
{[%clk 00:00:15]} {[%emt 00:00:03]} Nc7 {[%clk 00:01:19]} {[%emt 00:00:01]} 44.
Rc8 {[%clk 00:00:16]} {[%emt 00:00:04]} c4 {[%clk 00:00:31]} {[%emt 00:00:54]}
45. bxc4 {[%clk 00:00:14]} {[%emt 00:00:08]} dxc4 {[%clk 00:00:35]} 46. Rxc7
{[%clk 00:00:15]} {[%emt 00:00:03]} Ra2 {[%clk 00:00:39]} {[%emt 00:00:01]} 47.
Rc8 {[%clk 00:00:11]} {[%emt 00:00:09]} c3 {[%clk 00:00:42]} {[%emt 00:00:01]}
48. a8=Q {[%clk 00:00:08]} {[%emt 00:00:07]} 1-0